[Event "*** Titled Tuesday 3|2 Blitz"]
[Site "Chess.com"]
[Date "2016.07.05"]
[Round "7"]
[White "underdogchss"]
[Black "twofoxniel"]
[Result "1-0"]
[WhiteElo "2353"]
[BlackElo "2490"]
[TimeControl "180+2"]
[EndTime "12:30:01 PDT"]
[Termination "underdogchss won by checkmate"]

1. d4 {[%clk 0:03:01.9]} 1... d5 {[%clk 0:02:58.3]} 2. Nf3 {[%clk 0:03:02]} 2...
c6 {[%clk 0:02:58.9]} 3. c4 {[%clk 0:03:02.7]} 3... Nf6 {[%clk 0:02:59.8]} 4. e3
{[%clk 0:03:03.4]} 4... Bf5 {[%clk 0:03:00.2]} 5. Nc3 {[%clk 0:03:04.2]} 5... e6
{[%clk 0:03:01.2]} 6. Nh4 {[%clk 0:03:01.1]} 6... Bg6 {[%clk 0:03:02.1]} 7. Nxg6
{[%clk 0:02:59.5]} 7... hxg6 {[%clk 0:03:04]} 8. h3 {[%clk 0:02:58.4]} 8... Nbd7
{[%clk 0:03:02.6]} 9. a3 {[%clk 0:02:58.9]} 9... Bd6 {[%clk 0:03:03.1]} 10. cxd5
{[%clk 0:02:47.3]} 10... exd5 {[%clk 0:03:02.2]} 11. Bd3 {[%clk 0:02:48.2]}
11... O-O {[%clk 0:03:01.3]} 12. O-O {[%clk 0:02:40.6]} 12... Re8 {[%clk
0:03:02.1]} 13. b4 {[%clk 0:02:38.2]} 13... a6 {[%clk 0:02:56.1]} 14. Qc2 {[%clk
0:02:27]} 14... Qe7 {[%clk 0:02:47.9]} 15. Rb1 {[%clk 0:02:14.4]} 15... Rac8
{[%clk 0:02:47.8]} 16. Na4 {[%clk 0:02:12.9]} 16... Ne4 {[%clk 0:02:39]} 17. Nc5
{[%clk 0:02:07.5]} 17... Ndf6 {[%clk 0:02:39.3]} 18. Bb2 {[%clk 0:02:01.4]}
18... Bb8 {[%clk 0:02:36.8]} 19. Rbe1 {[%clk 0:01:48.1]} 19... Qc7 {[%clk
0:02:36.9]} 20. f4 {[%clk 0:01:36.1]} 20... Re7 {[%clk 0:02:14.4]} 21. g4 {[%clk
0:01:35.2]} 21... Rce8 {[%clk 0:02:11.8]} 22. Nb3 {[%clk 0:01:28.7]} 22... g5
{[%clk 0:02:03.3]} 23. Bc1 {[%clk 0:01:24.2]} 23... Ng3 {[%clk 0:02:00.1]} 24.
fxg5 {[%clk 0:01:17.3]} 24... Nxf1 {[%clk 0:01:43.6]} 25. gxf6 {[%clk
0:01:11.5]} 25... Nxe3 {[%clk 0:01:44.4]} 26. Qf2 {[%clk 0:00:53.4]} 26... gxf6
{[%clk 0:00:56.9]} 27. Rxe3 {[%clk 0:00:53.2]} 27... Rxe3 {[%clk 0:00:44.8]} 28.
Bxe3 {[%clk 0:00:54]} 28... Rxe3 {[%clk 0:00:45.7]} 29. Qxe3 {[%clk 0:00:54.6]}
29... Qh2+ {[%clk 0:00:47.3]} 30. Kf1 {[%clk 0:00:55.4]} 30... Bg3 {[%clk
0:00:38.8]} 31. Qf3 {[%clk 0:00:41.4]} 31... Qxh3+ {[%clk 0:00:38.6]} 32. Ke2
{[%clk 0:00:29.4]} 32... Qh2+ {[%clk 0:00:39.2]} 33. Kd1 {[%clk 0:00:30.1]}
33... Qg1+ {[%clk 0:00:38.7]} 34. Kc2 {[%clk 0:00:24.5]} 34... Qh2+ {[%clk
0:00:39.2]} 35. Qe2 {[%clk 0:00:14.7]} 35... Qg1 {[%clk 0:00:37.4]} 36. Nd2
{[%clk 0:00:13.2]} 36... Bf4 {[%clk 0:00:38.6]} 37. Nf3 {[%clk 0:00:13.6]} 37...
Qc1+ {[%clk 0:00:38.6]} 38. Kb3 {[%clk 0:00:14.9]} 38... a5 {[%clk 0:00:38.6]}
39. bxa5 {[%clk 0:00:14.8]} 39... c5 {[%clk 0:00:35.8]} 40. dxc5 {[%clk
0:00:15.3]} 40... d4 {[%clk 0:00:37.2]} 41. Nxd4 {[%clk 0:00:15]} 41... Bd2
{[%clk 0:00:38.3]} 42. Bc2 {[%clk 0:00:13.4]} 42... Bxa5 {[%clk 0:00:30.5]} 43.
Qe8+ {[%clk 0:00:14.2]} 43... Kg7 {[%clk 0:00:31.7]} 44. Nf5+ {[%clk 0:00:14.5]}
44... Kg6 {[%clk 0:00:32.9]} 45. Qg8# {[%clk 0:00:14.7]} 1-0

[Event "*** Titled Tuesday 3|2 Blitz"]
[Site "Chess.com"]
[Date "2016.07.05"]
[Round "7"]
[White "platy3"]
[Black "Izoria123"]
[Result "1-0"]
[WhiteElo "2689"]
[BlackElo "2589"]
[TimeControl "180+2"]
[EndTime "12:30:11 PDT"]
[Termination "platy3 won on time"]

1. e4 {[%clk 0:02:52.3]} 1... d6 {[%clk 0:02:51.6]} 2. d4 {[%clk 0:02:52.6]}
2... Nf6 {[%clk 0:02:52]} 3. Nc3 {[%clk 0:02:53.9]} 3... g6 {[%clk 0:02:53.2]}
4. f3 {[%clk 0:02:52]} 4... Bg7 {[%clk 0:02:50.8]} 5. Be3 {[%clk 0:02:52.9]}
5... O-O {[%clk 0:02:49.6]} 6. Qd2 {[%clk 0:02:53.1]} 6... e5 {[%clk 0:02:50.5]}
7. dxe5 {[%clk 0:02:44.5]} 7... dxe5 {[%clk 0:02:51]} 8. O-O-O {[%clk
0:02:46.4]} 8... Qe7 {[%clk 0:02:34.1]} 9. Qf2 {[%clk 0:02:46.2]} 9... b6 {[%clk
0:02:24]} 10. Bc4 {[%clk 0:02:44.7]} 10... Be6 {[%clk 0:02:15.2]} 11. Bxe6
{[%clk 0:02:44.1]} 11... Qxe6 {[%clk 0:02:17.1]} 12. g4 {[%clk 0:02:43.4]} 12...
c6 {[%clk 0:02:02.3]} 13. h4 {[%clk 0:02:43]} 13... h5 {[%clk 0:01:57]} 14. Nh3
{[%clk 0:02:31.4]} 14... hxg4 {[%clk 0:01:41.8]} 15. Ng5 {[%clk 0:02:31.6]}
15... Qe7 {[%clk 0:01:04.3]} 16. h5 {[%clk 0:02:33]} 16... Nxh5 {[%clk
0:01:03.7]} 17. fxg4 {[%clk 0:02:32.2]} 17... Nf4 {[%clk 0:01:04.7]} 18. Qh2
{[%clk 0:02:13.4]} 18... Re8 {[%clk 0:01:02.7]} 19. Qh7+ {[%clk 0:02:00]} 19...
Kf8 {[%clk 0:01:02.8]} 20. Nf3 {[%clk 0:01:51.5]} 20... Nd7 {[%clk 0:00:56.4]}
21. Bf2 {[%clk 0:01:52]} 21... Nf6 {[%clk 0:00:52.2]} 22. Qh4 {[%clk 0:01:48.4]}
22... Rad8 {[%clk 0:00:49.4]} 23. Rde1 {[%clk 0:01:44.1]} 23... Qe6 {[%clk
0:00:44.6]} 24. Rhg1 {[%clk 0:01:37.1]} 24... Rd7 {[%clk 0:00:26.4]} 25. Be3
{[%clk 0:01:35.3]} 25... Red8 {[%clk 0:00:23.9]} 26. Bxf4 {[%clk 0:01:16.4]}
26... exf4 {[%clk 0:00:24.2]} 27. e5 {[%clk 0:01:18.2]} 27... Nd5 {[%clk
0:00:12.6]} 28. Ng5 {[%clk 0:01:19.6]} 28... Qe7 {[%clk 0:00:07]} 29. e6 {[%clk
0:01:16.5]} 29... Nxc3 {[%clk 0:00:05.2]} 30. exd7 {[%clk 0:00:52.7]} 30... Qxd7
{[%clk 0:00:05.3]} 31. bxc3 {[%clk 0:00:30.8]} 31... Qd2+ {[%clk 0:00:06]} 32.
Kb1 {[%clk 0:00:32.4]} 32... Bxc3 {[%clk 0:00:07.1]} 33. Qh7 {[%clk 0:00:14.1]}
33... Qd5 {[%clk 0:00:05.6]} 34. Qxf7+ {[%clk 0:00:08.9]} 34... Qxf7 {[%clk
0:00:06.6]} 35. Nxf7 {[%clk 0:00:10.8]} 35... Kxf7 {[%clk 0:00:08.1]} 36. Re4
{[%clk 0:00:09]} 36... g5 {[%clk 0:00:07.5]} 37. a4 {[%clk 0:00:08.7]} 37... Rd4
{[%clk 0:00:07.1]} 38. Rge1 {[%clk 0:00:04.5]} 38... Rd7 {[%clk 0:00:05.7]} 39.
Rf1 {[%clk 0:00:05.2]} 39... Kf6 {[%clk 0:00:06.1]} 40. Ka2 {[%clk 0:00:06.3]}
40... Rd4 {[%clk 0:00:04.6]} 41. Re8 {[%clk 0:00:03.6]} 1-0

[Event "*** Titled Tuesday 3|2 Blitz"]
[Site "Chess.com"]
[Date "2016.07.05"]
[Round "7"]
[White "Zhani-Z"]
[Black "VerdeNotte"]
[Result "0-1"]
[WhiteElo "2269"]
[BlackElo "2626"]
[TimeControl "180+2"]
[EndTime "12:30:25 PDT"]
[Termination "VerdeNotte won by resignation"]

1. e4 {[%clk 0:03:01.9]} 1... g6 {[%clk 0:02:58.1]} 2. d4 {[%clk 0:03:02.5]}
2... d6 {[%clk 0:02:59.5]} 3. Nc3 {[%clk 0:03:03.5]} 3... Bg7 {[%clk 0:02:58.8]}
4. Nf3 {[%clk 0:03:04.4]} 4... Nf6 {[%clk 0:02:59.6]} 5. Be2 {[%clk 0:03:05.4]}
5... O-O {[%clk 0:03:00.4]} 6. O-O {[%clk 0:03:06.6]} 6... e6 {[%clk 0:03:01.5]}
7. a4 {[%clk 0:02:57.6]} 7... b6 {[%clk 0:03:00.6]} 8. Re1 {[%clk 0:02:54.8]}
8... Bb7 {[%clk 0:03:00.2]} 9. e5 {[%clk 0:02:50.7]} 9... dxe5 {[%clk
0:02:59.8]} 10. Nxe5 {[%clk 0:02:51.5]} 10... Nfd7 {[%clk 0:02:56.2]} 11. Bf3
{[%clk 0:02:45.7]} 11... Qc8 {[%clk 0:02:44.8]} 12. Bf4 {[%clk 0:02:32.6]} 12...
Nxe5 {[%clk 0:02:40]} 13. Bxe5 {[%clk 0:02:32.7]} 13... Bxe5 {[%clk 0:02:40.9]}
14. dxe5 {[%clk 0:02:32]} 14... Nc6 {[%clk 0:02:35.1]} 15. Ne4 {[%clk
0:02:26.1]} 15... Rd8 {[%clk 0:02:22.6]} 16. Qc1 {[%clk 0:02:22.3]} 16... Nd4
{[%clk 0:01:59.9]} 17. Nf6+ {[%clk 0:02:08.7]} 17... Kg7 {[%clk 0:01:57.9]} 18.
Bxb7 {[%clk 0:02:08.2]} 18... Qxb7 {[%clk 0:01:59.8]} 19. Ng4 {[%clk 0:01:31.2]}
19... Nf5 {[%clk 0:01:58.6]} 20. Qg5 {[%clk 0:01:27.3]} 20... c5 {[%clk
0:01:51.6]} 21. Rad1 {[%clk 0:01:15.2]} 21... Qe7 {[%clk 0:01:50.4]} 22. Qf6+
{[%clk 0:01:13]} 22... Qxf6 {[%clk 0:01:50.8]} 23. exf6+ {[%clk 0:01:14.1]}
23... Kf8 {[%clk 0:01:51.7]} 24. Ne5 {[%clk 0:01:12.5]} 24... Ke8 {[%clk
0:01:47.6]} 25. g4 {[%clk 0:01:07.9]} 25... Nd4 {[%clk 0:01:45.7]} 26. c3 {[%clk
0:01:06.6]} 26... Ne2+ {[%clk 0:01:46.5]} 27. Kf1 {[%clk 0:01:02.2]} 27... Nf4
{[%clk 0:01:47.2]} 28. g5 {[%clk 0:01:01.5]} 28... Nh3 {[%clk 0:01:39.1]} 29.
Nf3 {[%clk 0:00:48.8]} 29... Rxd1 {[%clk 0:01:39.5]} 30. Rxd1 {[%clk 0:00:49.6]}
30... Rd8 {[%clk 0:01:41.2]} 31. Rxd8+ {[%clk 0:00:49.1]} 31... Kxd8 {[%clk
0:01:43.1]} 32. Kg2 {[%clk 0:00:49.5]} 32... Nf4+ {[%clk 0:01:43.8]} 33. Kg3
{[%clk 0:00:47]} 33... Nd3 {[%clk 0:01:44.2]} 34. b3 {[%clk 0:00:45.4]} 34...
Kd7 {[%clk 0:01:28]} 35. Nd2 {[%clk 0:00:37.7]} 35... e5 {[%clk 0:01:24.4]} 36.
Kf3 {[%clk 0:00:30]} 36... Ke6 {[%clk 0:01:23.3]} 37. Ke3 {[%clk 0:00:21.4]}
37... Nf4 {[%clk 0:01:19.8]} 38. Ne4 {[%clk 0:00:21.5]} 38... Kf5 {[%clk
0:01:14.4]} 39. f3 {[%clk 0:00:22.6]} 39... Nd5+ {[%clk 0:00:54.1]} 40. Kd3
{[%clk 0:00:21.6]} 40... Kf4 {[%clk 0:00:49.5]} 41. Ke2 {[%clk 0:00:21.6]} 41...
a5 {[%clk 0:00:36.1]} 42. h4 {[%clk 0:00:21.5]} 42... Kf5 {[%clk 0:00:37]} 43.
Kd3 {[%clk 0:00:21.6]} 43... Nf4+ {[%clk 0:00:35.9]} 44. Kc4 {[%clk 0:00:22]}
44... Ng2 {[%clk 0:00:37.1]} 45. Kb5 {[%clk 0:00:23]} 45... Nxh4 {[%clk
0:00:38.2]} 46. Kxb6 {[%clk 0:00:23.9]} 46... Nxf3 {[%clk 0:00:39.4]} 47. Nxc5
{[%clk 0:00:20.2]} 47... Nxg5 {[%clk 0:00:34.7]} 48. Kxa5 {[%clk 0:00:20.9]}
48... h5 {[%clk 0:00:35.3]} 49. Nd3 {[%clk 0:00:20.5]} 49... e4 {[%clk
0:00:35.5]} 50. Ne1 {[%clk 0:00:19.9]} 50... h4 {[%clk 0:00:35.8]} 51. Ng2
{[%clk 0:00:18.9]} 51... h3 {[%clk 0:00:37.2]} 52. Ne3+ {[%clk 0:00:20.1]} 52...
Kf4 {[%clk 0:00:37.7]} 53. Nf1 {[%clk 0:00:21.5]} 53... e3 {[%clk 0:00:37.7]}
0-1

[Event "*** Titled Tuesday 3|2 Blitz"]
[Site "Chess.com"]
[Date "2016.07.05"]
[Round "7"]
[White "SmoothAsAHedgehog"]
[Black "AdamHunt1"]
[Result "0-1"]
[WhiteElo "2496"]
[BlackElo "2398"]
[TimeControl "180+2"]
[EndTime "12:30:37 PDT"]
[Termination "AdamHunt1 won by checkmate"]

1. Nf3 {[%clk 0:03:01.9]} 1... Nf6 {[%clk 0:03:00.3]} 2. c4 {[%clk 0:03:00.2]}
2... g6 {[%clk 0:03:01.4]} 3. g3 {[%clk 0:03:01.1]} 3... Bg7 {[%clk 0:03:02.3]}
4. Bg2 {[%clk 0:03:02.6]} 4... O-O {[%clk 0:03:03.8]} 5. O-O {[%clk 0:03:03.2]}
5... d6 {[%clk 0:03:05.1]} 6. Nc3 {[%clk 0:03:03.9]} 6... e5 {[%clk 0:03:05.5]}
7. d3 {[%clk 0:03:04.8]} 7... Nc6 {[%clk 0:03:06.7]} 8. Rb1 {[%clk 0:03:05.4]}
8... Be6 {[%clk 0:03:03.1]} 9. b4 {[%clk 0:03:05.5]} 9... h6 {[%clk 0:03:02.1]}
10. b5 {[%clk 0:03:06.3]} 10... Ne7 {[%clk 0:03:02.8]} 11. a4 {[%clk 0:03:07.3]}
11... Qd7 {[%clk 0:03:02.7]} 12. Bb2 {[%clk 0:03:08.5]} 12... Bh3 {[%clk
0:03:02.7]} 13. a5 {[%clk 0:03:09.8]} 13... c6 {[%clk 0:03:01.3]} 14. a6 {[%clk
0:03:09.4]} 14... bxa6 {[%clk 0:02:59]} 15. bxc6 {[%clk 0:03:09.5]} 15... Nxc6
{[%clk 0:02:58.2]} 16. Nd5 {[%clk 0:03:09.8]} 16... Bxg2 {[%clk 0:02:57.3]} 17.
Kxg2 {[%clk 0:03:09.3]} 17... Nxd5 {[%clk 0:02:55.2]} 18. cxd5 {[%clk
0:03:04.4]} 18... Nb4 {[%clk 0:02:55.8]} 19. e4 {[%clk 0:03:01.6]} 19... Rab8
{[%clk 0:02:48.8]} 20. Bc3 {[%clk 0:02:49.9]} 20... a5 {[%clk 0:02:48.4]} 21.
Ra1 {[%clk 0:02:50.7]} 21... Qb5 {[%clk 0:02:48.8]} 22. Bxb4 {[%clk 0:02:43]}
22... axb4 {[%clk 0:02:43.7]} 23. Rxa7 {[%clk 0:02:43.1]} 23... Ra8 {[%clk
0:02:44.2]} 24. Rc7 {[%clk 0:02:09.4]} 24... Ra3 {[%clk 0:02:39.8]} 25. Rc4
{[%clk 0:02:09.8]} 25... f5 {[%clk 0:02:37.1]} 26. Qe2 {[%clk 0:02:06.4]} 26...
fxe4 {[%clk 0:02:33.9]} 27. Qxe4 {[%clk 0:02:01.5]} 27... Kh7 {[%clk 0:01:57.2]}
28. Rb1 {[%clk 0:01:39.1]} 28... b3 {[%clk 0:01:31.9]} 29. Rb4 {[%clk
0:01:38.4]} 29... Qc5 {[%clk 0:01:33.1]} 30. R1xb3 {[%clk 0:01:36.8]} 30... Ra5
{[%clk 0:01:32.9]} 31. Rb7 {[%clk 0:01:17.3]} 31... Qxd5 {[%clk 0:01:32.3]} 32.
Rd7 {[%clk 0:01:12.3]} 32... Qxb3 {[%clk 0:01:16.8]} 33. Rxd6 {[%clk 0:01:03.4]}
33... Qf7 {[%clk 0:01:11.4]} 34. Qe3 {[%clk 0:00:59]} 34... Ra2 {[%clk
0:01:03.8]} 35. Rc6 {[%clk 0:00:53.2]} 35... Qf5 {[%clk 0:01:01.4]} 36. Rc7
{[%clk 0:00:49.8]} 36... Kh8 {[%clk 0:01:02.2]} 37. h4 {[%clk 0:00:29.2]} 37...
Ra6 {[%clk 0:01:00.9]} 38. Nd2 {[%clk 0:00:25.6]} 38... Raf6 {[%clk 0:00:56.3]}
39. Ne4 {[%clk 0:00:25.8]} 39... Qf3+ {[%clk 0:00:57.4]} 40. Kh3 {[%clk
0:00:23.7]} 40... Qxe3 {[%clk 0:00:50]} 41. fxe3 {[%clk 0:00:24.4]} 41... Rf3
{[%clk 0:00:51]} 42. h5 {[%clk 0:00:19.9]} 42... gxh5 {[%clk 0:00:49.9]} 43. Kh4
{[%clk 0:00:21]} 43... Rxe3 {[%clk 0:00:47.2]} 44. Kxh5 {[%clk 0:00:22.2]} 44...
Rxd3 {[%clk 0:00:45.6]} 45. Kg6 {[%clk 0:00:23.4]} 45... Rg8 {[%clk 0:00:44.5]}
46. g4 {[%clk 0:00:16.5]} 46... Rd4 {[%clk 0:00:41.9]} 47. Nf2 {[%clk
0:00:04.2]} 47... Rf4 {[%clk 0:00:38.4]} 48. Nd3 {[%clk 0:00:05.3]} 48... Bf6+
{[%clk 0:00:33.3]} 49. Kh5 {[%clk 0:00:07.2]} 49... Rg5+ {[%clk 0:00:32.6]} 50.
Kxh6 {[%clk 0:00:08.5]} 50... Rfxg4 {[%clk 0:00:29.5]} 51. Rc8+ {[%clk
0:00:09.5]} 51... Rg8 {[%clk 0:00:29.6]} 52. Rc7 {[%clk 0:00:08.3]} 52... Rh4#
{[%clk 0:00:27.4]} 0-1

[Event "*** Titled Tuesday 3|2 Blitz"]
[Site "Chess.com"]
[Date "2016.07.05"]
[Round "7"]
[White "FearlessKing64"]
[Black "WanderingPuppet"]
[Result "0-1"]
[WhiteElo "2115"]
[BlackElo "2287"]
[TimeControl "180+2"]
[EndTime "12:32:26 PDT"]
[Termination "WanderingPuppet won by resignation"]

1. e4 {[%clk 0:03:01.9]} 1... c5 {[%clk 0:02:59.1]} 2. Nf3 {[%clk 0:03:02.5]}
2... d6 {[%clk 0:03:00.1]} 3. d4 {[%clk 0:03:03]} 3... cxd4 {[%clk 0:03:00.8]}
4. Nxd4 {[%clk 0:03:04.6]} 4... Nf6 {[%clk 0:03:00.9]} 5. f3 {[%clk 0:03:05.8]}
5... e5 {[%clk 0:02:57.1]} 6. Bb5+ {[%clk 0:03:06]} 6... Nbd7 {[%clk 0:02:54]}
7. Nf5 {[%clk 0:03:06.6]} 7... Qb6 {[%clk 0:02:50.2]} 8. c4 {[%clk 0:03:00.4]}
8... g6 {[%clk 0:02:36.9]} 9. Ne3 {[%clk 0:02:35.9]} 9... a6 {[%clk 0:02:23.1]}
10. Ba4 {[%clk 0:02:24.5]} 10... Bh6 {[%clk 0:02:13.1]} 11. Qe2 {[%clk
0:02:08.9]} 11... O-O {[%clk 0:01:54.1]} 12. Nc3 {[%clk 0:02:04.6]} 12... Qd8
{[%clk 0:00:48.2]} 13. O-O {[%clk 0:01:52.1]} 13... Nc5 {[%clk 0:00:47]} 14. Bc2
{[%clk 0:01:47.9]} 14... Ne6 {[%clk 0:00:47.8]} 15. Ned5 {[%clk 0:01:17.8]}
15... Bxc1 {[%clk 0:00:47.3]} 16. Raxc1 {[%clk 0:01:12]} 16... Nd4 {[%clk
0:00:48.4]} 17. Qd3 {[%clk 0:01:04.8]} 17... Nxd5 {[%clk 0:00:49.1]} 18. Nxd5
{[%clk 0:00:55]} 18... Be6 {[%clk 0:00:50.2]} 19. Ne3 {[%clk 0:00:47.4]} 19...
b5 {[%clk 0:00:50.5]} 20. b3 {[%clk 0:00:37.5]} 20... Rc8 {[%clk 0:00:49.1]} 21.
cxb5 {[%clk 0:00:36]} 21... axb5 {[%clk 0:00:51]} 22. Bb1 {[%clk 0:00:33.9]}
22... Qb6 {[%clk 0:00:49.5]} 23. Kh1 {[%clk 0:00:34.1]} 23... b4 {[%clk
0:00:34]} 24. f4 {[%clk 0:00:32.3]} 24... Rxc1 {[%clk 0:00:27.1]} 25. Rxc1
{[%clk 0:00:32.4]} 25... exf4 {[%clk 0:00:28.8]} 26. Nc4 {[%clk 0:00:25.4]}
26... Bxc4 {[%clk 0:00:27.7]} 27. Rxc4 {[%clk 0:00:27.3]} 27... Ne6 {[%clk
0:00:27.9]} 28. Qd2 {[%clk 0:00:19.2]} 28... Rb8 {[%clk 0:00:28.3]} 29. h3
{[%clk 0:00:19.6]} 29... h5 {[%clk 0:00:22.8]} 30. Bd3 {[%clk 0:00:18.2]} 30...
Nc5 {[%clk 0:00:13.9]} 31. Bc2 {[%clk 0:00:15.6]} 31... Ne6 {[%clk 0:00:13.8]}
32. Bd3 {[%clk 0:00:15.9]} 32... Qb7 {[%clk 0:00:13.7]} 33. Bc2 {[%clk
0:00:11.7]} 33... Qb6 {[%clk 0:00:14.2]} 34. Bd3 {[%clk 0:00:11.9]} 34... Kg7
{[%clk 0:00:15.8]} 35. Bc2 {[%clk 0:00:11.6]} 35... Kh6 {[%clk 0:00:16.1]} 36.
g3 {[%clk 0:00:12.1]} 36... Qe3 {[%clk 0:00:07.3]} 37. Qxe3 {[%clk 0:00:08.5]}
37... fxe3 {[%clk 0:00:09.2]} 38. Kg2 {[%clk 0:00:09.7]} 38... Nc5 {[%clk
0:00:06.8]} 39. Kf3 {[%clk 0:00:08.9]} 39... Ra8 {[%clk 0:00:08.4]} 40. Bb1
{[%clk 0:00:09.2]} 40... Rb8 {[%clk 0:00:07]} 41. Kxe3 {[%clk 0:00:10.4]} 41...
Kg5 {[%clk 0:00:08.7]} 42. h4+ {[%clk 0:00:07.7]} 42... Kf6 {[%clk 0:00:10.3]}
43. Kf4 {[%clk 0:00:08.6]} 43... Ke6 {[%clk 0:00:10.5]} 44. Ke3 {[%clk
0:00:08.9]} 44... Ke5 {[%clk 0:00:10.6]} 45. Rd4 {[%clk 0:00:10.3]} 45... Ke6
{[%clk 0:00:07.3]} 46. Bd3 {[%clk 0:00:09.4]} 46... Ra8 {[%clk 0:00:07.2]} 47.
Bc4+ {[%clk 0:00:10]} 47... Ke7 {[%clk 0:00:07.9]} 48. Rd2 {[%clk 0:00:09.2]}
48... Nd7 {[%clk 0:00:06]} 49. Rf2 {[%clk 0:00:10]} 49... Ne5 {[%clk 0:00:06.9]}
50. Bd5 {[%clk 0:00:11.5]} 50... Rc8 {[%clk 0:00:06.9]} 51. Rd2 {[%clk
0:00:09.8]} 51... Rc3+ {[%clk 0:00:06.2]} 52. Kf2 {[%clk 0:00:11.3]} 52... Ng4+
{[%clk 0:00:06.6]} 53. Kg2 {[%clk 0:00:11.2]} 53... Ne3+ {[%clk 0:00:05]} 54.
Kh2 {[%clk 0:00:11.6]} 54... Ng4+ {[%clk 0:00:06.2]} 55. Kg2 {[%clk 0:00:12.8]}
55... Ne3+ {[%clk 0:00:07.8]} 56. Kh3 {[%clk 0:00:13.6]} 56... Nf1 {[%clk
0:00:08.2]} 57. Rf2 {[%clk 0:00:13.6]} 57... Nxg3 {[%clk 0:00:07.8]} 58. Rxf7+
{[%clk 0:00:14]} 58... Kd8 {[%clk 0:00:09]} 59. Kg2 {[%clk 0:00:14.1]} 59... Ne2
{[%clk 0:00:09.3]} 60. Rb7 {[%clk 0:00:12.4]} 60... Nf4+ {[%clk 0:00:08.9]} 61.
Kf2 {[%clk 0:00:12.4]} 61... Rh3 {[%clk 0:00:06.9]} 62. Rxb4 {[%clk 0:00:12]}
62... Rxh4 {[%clk 0:00:05.4]} 63. a4 {[%clk 0:00:12.8]} 63... Nxd5 {[%clk
0:00:06.1]} 64. Rb8+ {[%clk 0:00:10.9]} 64... Kc7 {[%clk 0:00:06.4]} 65. Rg8
{[%clk 0:00:10.3]} 65... Rxe4 {[%clk 0:00:07.2]} 66. Rxg6 {[%clk 0:00:09.1]}
66... Rb4 {[%clk 0:00:08.7]} 67. Rg5 {[%clk 0:00:09.2]} 67... Kc6 {[%clk
0:00:08.9]} 68. a5 {[%clk 0:00:06.8]} 68... Rxb3 {[%clk 0:00:09.9]} 69. a6
{[%clk 0:00:08.2]} 69... Ra3 {[%clk 0:00:10.6]} 70. Rxh5 {[%clk 0:00:09.2]}
70... Ra2+ {[%clk 0:00:10.4]} 0-1